bitfinex/quotes_ETHUSD_20251120
["timestamp","ask_amount","ask_price","bid_price","bid_amount"]
[1763609874412,0.90699264,3043.6,3043.5,0.101]
[1763609874638,1.32509314,3043.6,3043.5,0.101]
[1763609874893,1.32509314,3043.6,3043.5,0.5556]
[1763609875120,1.86259873,3043.6,3043.5,0.5556]
[1763609875322,1.73059714,3043.6,3043.5,0.5556]
[1763609876092,5.01618,3043.6,3043.5,0.5556]
[1763609877139,4.10918736,3043.6,3043.5,0.5556]
[1763609877308,5.01618,3043.6,3043.5,0.5556]
[1763609877491,5.01637554,3043.6,3043.5,0.5556]
[1763609879043,5.84675329,3043.6,3043.5,0.4556]
[1763609879237,5.84675329,3043.6,3043.5,0.5556]
[1763609879836,1.73079268,3043.6,3043.5,1.0505]
[1763609880037,1.61979268,3043.6,3043.5,1.0505]
[1763609880244,1.73079268,3043.6,3043.5,1.0505]
[1763609880912,0.002,3043.8,3043.5,11.02576427]
[1763609881118,0.002,3043.8,3043.7,0.5546]
[1763609881314,0.113,3043.8,3043.7,1.0495]
[1763609883017,0.002,3043.8,3043.7,1.0495]
[1763609883219,0.113,3043.8,3043.7,1.0495]
[1763609884165,0.113,3043.8,3043.7,4.33497491]
[1763609884622,0.113,3043.8,3043.7,1.0495]
[1763609884823,0.113,3043.8,3043.7,4.33497491]
[1763609886050,0.37089264,3044.4,3044.3,0.226]
[1763609886256,0.002,3044.9,3044.8,0.1]
[1763609886499,0.002,3044.9,3044.4,0.56434399]
[1763609886786,0.491,3044.5,3043.6,0.4949]
[1763609887098,0.03298752,3044.4,3044.3,0.1]
[1763609887375,0.002,3044.9,3044.8,0.1]
[1763609887672,0.1851,3044.9,3044.8,0.1]
[1763609887874,1.30738752,3044.9,3043.6,4.41087529]
[1763609888065,1.30738752,3044.9,3044.6,0.1]
[1763609888283,1.674504,3044.9,3044.8,0.1]
[1763609888470,4.95791112,3044.9,3044.8,0.1]
[1763609888796,0.70854756,3044.9,3044.8,0.1]
[1763609888945,0.113,3044.9,3044.8,0.1]
[1763609889307,4.0633801,3044.9,3044.8,0.1]
[1763609889673,4.5452801,3044.9,3044.8,0.1]
[1763609890701,4.9507841,3044.9,3044.8,0.1]
[1763609890918,6.68126162,3044.9,3044.8,0.1]
[1763609891281,0.405504,3044.8,3044.5,0.1]
[1763609891464,0.4705,3044.6,3044.5,0.1]
[1763609892009,6.21076162,3044.9,3044.4,0.1]
[1763609892295,0.405504,3044.8,3044.7,0.1]
[1763609892463,0.405504,3044.6,3044.5,0.1]
[1763609892966,1.357904,3044.6,3044.5,0.1]
[1763609893371,2.29788416,3044.6,3044.2,0.1]
[1763609893582,0.405504,3044.4,3044.2,0.1]
[1763609893782,0.876004,3044.3,3044.2,0.1]
[1763609893979,0.90699264,3044.7,3044.2,0.1]
[1763609894187,0.405504,3044.5,3044.4,0.1]
[1763609894398,0.50926281,3044.6,3044.5,0.1]
[1763609894596,1.02576681,3044.6,3044.5,0.1]
[1763609895213,6.16966316,3044.6,3044.5,0.1]
[1763609895782,0.405504,3044.5,3044.4,0.1]
[1763609896070,1.50437032,3044.5,3044.4,0.1]
[1763609896374,1.50437032,3044.5,3043.6,3.28651413]
[1763609896375,2.88186296,3044.5,3044.2,0.1]
[1763609896576,3.69033138,3044.3,3044.2,0.1]
[1763609896778,4.16083138,3044.3,3044.2,0.1]
[1763609896968,8.86959797,3044.3,3044.1,0.1]
[1763609897192,0.998404,3044.2,3044.1,0.1]
[1763609897368,1.468904,3044.2,3044.1,0.1]
[1763609897771,1.468904,3044.2,3043.6,0.001]
[1763609897772,1.468904,3044.2,3043.9,0.1]
[1763609897970,0.876004,3044.0,3043.9,0.1]
[1763609898200,1.18239994,3044.0,3043.9,0.1]
[1763609898386,1.84182993,3044.0,3043.9,0.1]
[1763609898583,5.12698104,3044.0,3043.9,0.1]
[1763609898786,6.03397368,3044.0,3043.9,0.1]
[1763609899296,1.31249664,3043.9,3043.6,0.101]
[1763609899601,0.6662,3043.7,3043.6,0.101]
[1763609899837,1.37797861,3043.7,3043.6,0.101]
[1763609899992,1.85987861,3043.7,3043.6,0.001]
[1763609900711,5.14535352,3043.7,3043.6,0.001]
[1763609900903,6.18341555,3043.7,3043.6,0.001]
[1763609902271,6.31501679,3043.7,3043.6,0.001]
[1763609902909,7.02024065,3043.7,3043.6,0.001]
[1763609906426,6.31501679,3043.7,3043.6,0.001]
[1763609907211,6.42601679,3043.7,3043.6,0.001]
[1763609907613,5.63741679,3043.7,3043.6,0.001]
[1763609907830,5.74841679,3043.7,3043.6,0.101]
[1763609908219,6.21565933,3043.7,3043.6,0.101]
[1763609908526,4.10789606,3043.7,3043.6,0.101]
[1763609909026,0.71142115,3043.7,3043.6,0.101]
[1763609909210,0.82242115,3043.7,3043.6,0.101]
[1763609909399,0.71142115,3043.7,3043.6,0.101]
[1763609909726,0.30591715,3043.7,3043.6,0.101]
[1763609910025,0.111,3043.7,3043.6,0.101]
[1763609912352,0.41691715,3043.7,3043.6,0.101]
[1763609912557,0.111,3043.7,3043.6,0.101]
[1763609914043,3.39647491,3043.7,3043.6,0.101]
[1763609914262,0.111,3043.7,3043.6,0.101]
[1763609914627,3.88627491,3043.7,3043.6,0.101]
[1763609914949,4.35387491,3043.7,3043.6,0.101]
[1763609915355,3.88627491,3043.7,3043.6,0.101]
[1763609916151,0.111,3043.7,3043.6,0.101]
[1763609917863,0.30687372,3043.9,3043.8,0.1]
[1763609918025,0.111,3043.9,3043.8,0.1]
[1763609918431,0.41787372,3043.9,3043.8,0.1]
[1763609918767,3.70313276,3043.9,3043.8,0.1]
[1763609918936,4.18773276,3043.9,3043.8,0.1]
[1763609919665,0.405504,3043.8,3043.7,0.1]
[1763609919969,0.71237772,3043.8,3043.7,0.1]
[1763609920345,3.99774469,3043.8,3043.7,0.1]
[1763609921980,0.30687372,3043.8,3043.7,0.1]
[1763609922277,3.3962627,3043.9,3043.8,0.1]
[1763609922431,4.81646653,3043.9,3043.8,0.1]
[1763609922629,5.30106653,3043.9,3043.8,0.1]
[1763609922861,1.53120383,3043.9,3043.8,0.1]
[1763609923045,4.81646287,3043.9,3043.8,0.1]
[1763609923249,1.53120383,3043.9,3043.8,0.1]
[1763609923475,4.81646287,3043.9,3043.8,0.1]
[1763609926459,1.53120383,3043.9,3043.8,0.1]
[1763609926662,4.81646287,3043.9,3043.8,0.1]
[1763609926979,1.01469983,3043.9,3043.8,0.1]
[1763609927397,0.30687372,3043.9,3043.8,3.38536697]
[1763609927612,0.111,3043.9,3043.8,3.28536697]
[1763609927898,0.111,3043.9,3043.8,3.38536697]
[1763609937330,0.111,3043.9,3043.8,0.1]
[1763609937477,0.111,3043.9,3043.8,3.38536697]
[1763609939496,0.111,3043.9,3043.8,0.1]
[1763609939834,0.111,3043.9,3043.8,3.38536697]
[1763609940747,0.30738192,3044.3,3043.8,3.38536697]
[1763609940915,0.002,3044.5,3043.8,3.38536697]
[1763609940916,0.42038192,3044.5,3044.4,0.1]
[1763609941230,0.113,3044.5,3044.4,0.1]
[1763609941727,0.5976,3044.5,3044.4,0.1]
[1763609941920,0.90498192,3044.5,3044.4,0.1]
[1763609942115,0.42038192,3044.5,3044.4,0.1]
[1763609942435,0.113,3044.5,3044.4,3.38471948]
[1763609944236,0.113,3044.5,3044.4,0.1]
[1763609945438,0.113,3044.5,3044.4,3.38471948]
[1763609945599,0.113,3044.5,3044.4,0.1]
[1763609946001,0.002,3044.5,3044.4,3.38471948]
[1763609947243,0.002,3044.5,3044.4,0.1]
[1763609947441,0.002,3044.5,3044.4,3.38471948]
[1763609951927,0.9439,3044.5,3044.4,0.1]
[1763609952128,1.2508002,3044.5,3044.4,0.1]
[1763609952321,1.71543122,3044.5,3044.4,0.1]
[1763609953221,5.00004281,3044.5,3044.4,0.1]
[1763609954220,1.71543122,3044.5,3044.4,0.1]
[1763609954420,5.00004281,3044.5,3044.4,0.1]
[1763609954718,0.4199002,3044.5,3044.4,0.1]
[1763609954947,0.113,3044.5,3044.4,0.1]
[1763609956555,1.0549,3044.5,3044.4,0.1]
[1763609956759,1.3618002,3044.5,3044.4,0.1]
[1763609957424,4.64641179,3044.5,3044.4,0.1]
[1763609957625,5.43950368,3044.5,3044.4,0.1]
[1763609960044,9.43271338,3044.5,3044.2,0.1]
[1763609960359,1.49336871,3044.4,3044.3,0.1]
[1763609960539,2.43663709,3044.4,3044.3,0.1]
[1763609960736,2.90063709,3044.4,3044.3,0.1]
[1763609961344,6.18535657,3044.4,3044.3,0.1]
[1763609961657,0.3069002,3044.4,3044.3,0.1]
[1763609961866,0.4179002,3044.4,3044.3,0.1]
[1763609963657,0.111,3044.4,3044.3,0.1]
[1763609963866,0.41848403,3044.4,3044.3,0.101]
[1763609964252,0.88248403,3044.4,3044.3,0.101]
[1763609969973,4.63260351,3044.4,3044.3,0.101]
[1763609976198,4.32511948,3044.4,3044.3,0.101]
[1763609976387,4.63192071,3044.4,3044.3,0.101]
[1763609979577,7.45640523,3044.4,3044.3,0.001]
[1763609979914,15.01259703,3044.4,3044.1,0.1]
[1763609980100,0.875804,3044.2,3044.1,0.1]
[1763609980267,0.41780123,3044.2,3044.1,0.1]
[1763609980465,3.28664473,3044.5,3044.3,0.1]
[1763609980466,4.4299905,3044.4,3044.3,0.1]
[1763609980703,4.5409905,3044.4,3044.3,0.1]
[1763609980906,4.87974596,3044.4,3044.3,0.1]
[1763609981493,4.40944596,3044.4,3044.3,0.1]
[1763609981692,3.7025764,3044.4,3044.3,0.1]
[1763609981891,3.5915764,3044.4,3044.3,0.1]
[1763609982074,0.41780123,3044.4,3044.3,0.1]
[1763609982406,3.70252071,3044.4,3044.3,0.1]
[1763609982600,4.17282071,3044.4,3044.3,0.1]
[1763609983505,0.41780123,3044.4,3044.3,0.1]
[1763609984119,3.70252071,3044.4,3044.3,0.1]
[1763609984320,4.62642071,3044.4,3044.3,0.1]
[1763609984521,6.13766583,3044.4,3044.3,0.1]
[1763609984819,0.88810123,3044.4,3044.3,0.1]
[1763609985223,4.17282071,3044.4,3044.3,0.1]
[1763609987323,6.27340759,3044.4,3044.0,0.001]
[1763609987489,0.4703,3044.1,3044.0,0.101]
[1763609987689,0.77710123,3044.1,3044.0,0.101]
[1763609987927,1.23070123,3044.1,3044.0,0.101]
[1763609988423,4.51574442,3044.1,3044.0,0.101]
[1763609988720,4.51584102,3044.1,3044.0,0.101]
[1763609989216,1.23079783,3044.1,3044.0,0.101]
[1763609989421,0.77719783,3044.1,3044.0,0.101]
[1763609990118,0.30689783,3044.1,3044.0,0.101]
[1763609993292,0.111,3044.1,3044.0,3.28615111]
[1763609993631,0.002,3044.5,3044.0,6.57130222]
[1763609993826,0.111,3044.4,3044.3,0.1]
[1763609994411,0.113,3044.5,3044.4,0.1]
[1763609994726,0.113,3044.5,3044.4,3.38471948]
[1763609994930,0.002,3044.5,3044.4,3.38471948]
[1763609995117,0.113,3044.5,3044.4,3.38471948]
[1763609995328,0.002,3044.5,3044.4,3.38471948]
[1763609996508,0.002,3044.5,3044.4,3.28471948]
[1763609996710,0.002,3044.5,3044.4,0.1]
[1763609998343,0.113,3044.5,3044.4,0.1]
[1763609998807,0.5833,3044.5,3044.4,0.1]
[1763610000419,0.113,3044.5,3044.4,0.1]
[1763610000801,7.82324706,3044.5,3044.4,0.1]
[1763610001100,13.03771351,3044.5,3044.3,0.1]
[1763610001306,5.17081616,3044.4,3044.3,0.1]
[1763610001724,5.13782864,3044.4,3044.3,0.1]
[1763610002759,0.41768917,3044.4,3044.3,0.1]
[1763610002961,0.002,3044.5,3044.3,0.1]
[1763610003115,0.002,3044.5,3044.4,0.1]
[1763610003322,0.113,3044.5,3044.4,0.1]
[1763610003947,0.002,3044.5,3044.4,0.1]
[1763610005009,0.002,3044.5,3044.4,3.38471948]
[1763610005626,0.002,3044.5,3044.4,0.1]
[1763610006217,0.002,3044.5,3044.4,3.38471948]
[1763610008429,0.4555,3044.5,3044.4,0.1]
[1763610009365,0.002,3044.5,3044.4,0.1]
[1763610009863,0.4555,3044.5,3044.4,0.1]
[1763610010044,0.002,3044.5,3044.4,0.1]
[1763610010352,0.4555,3044.5,3044.4,0.1]
[1763610010655,0.76209253,3044.5,3044.4,0.1]
[1763610011640,0.002,3044.5,3044.4,3.38471948]
[1763610011864,0.002,3044.5,3044.4,4.29171212]
[1763610012330,0.002,3044.5,3044.4,4.32455931]
[1763610012872,0.002,3044.5,3044.4,4.29171212]
[1763610019646,0.002,3044.5,3044.4,4.32455931]
[1763610019843,0.002,3044.5,3044.4,4.29171212]
[1763610022959,0.002,3044.5,3044.4,4.32455931]
[1763610023161,0.002,3044.5,3044.4,4.29171212]
[1763610023542,0.002,3044.5,3044.4,3.38471948]
[1763610025581,0.002,3044.5,3044.4,4.29171212]
[1763610027279,0.002,3044.5,3044.4,4.32455931]
[1763610028672,0.002,3044.9,3044.8,0.505504]
[1763610028926,3.4663981,3046.8,3044.8,0.505504]
[1763610028927,0.30824111,3046.7,3046.6,0.1]
[1763610029096,0.9576,3046.7,3046.6,0.1]
[1763610030078,0.493,3046.7,3046.6,0.1]
[1763610030283,0.002,3046.7,3046.6,0.1]
[1763610030798,0.002,3046.7,3046.6,3.38234753]
[1763610031888,0.002,3046.7,3046.6,4.28934017]
[1763610036124,0.002,3046.7,3046.6,4.40034017]
[1763610040099,0.002,3046.7,3046.6,0.111]
[1763610040302,0.002,3046.7,3046.6,0.211]
[1763610041072,0.002,3046.7,3046.6,3.89885153]
[1763610041305,0.002,3046.7,3046.6,4.03021894]
[1763610041485,0.002,3046.7,3046.6,4.04646447]
[1763610042208,0.002,3046.7,3046.6,4.95345711]
[1763610042601,0.002,3046.7,3046.6,4.93721158]
[1763610043477,0.002,3046.7,3046.6,3.62471494]
[1763610043679,0.002,3046.7,3046.6,3.49334753]
[1763610043975,0.002,3046.7,3046.6,4.40034017]
[1763610044491,0.002,3046.7,3046.6,4.28934017]
[1763610044998,0.002,3046.7,3046.6,4.3055857]
[1763610045199,0.002,3046.7,3046.6,4.28934017]
[1763610045405,0.002,3046.7,3046.6,4.3055857]
[1763610046112,0.002,3046.7,3046.6,4.7110897]
[1763610046713,0.002,3046.7,3046.6,4.69484417]
[1763610047176,0.002,3046.7,3046.6,4.7110897]
[1763610047807,0.002,3046.7,3046.6,4.69484417]
[1763610048929,0.002,3046.7,3046.6,4.7110897]
[1763610050900,0.002,3046.7,3046.6,4.69484417]
[1763610051195,0.002,3046.7,3046.6,4.28934017]
[1763610051398,0.002,3046.7,3046.6,4.40034017]
[1763610052619,0.4863,3046.7,3046.6,4.40034017]
[1763610053437,0.002,3046.7,3046.6,4.40034017]
[1763610053640,0.002,3046.7,3046.6,4.4165857]
[1763610054716,0.002,3046.7,3046.6,4.80584417]
[1763610055152,0.002,3046.7,3046.6,5.2919897]
[1763610055338,0.002,3046.7,3046.6,5.27574417]
[1763610056250,0.002,3046.7,3046.6,5.2919897]
[1763610059257,0.002,3046.7,3046.6,5.32574417]
[1763610060150,0.002,3046.7,3046.6,5.3419897]
[1763610060360,0.002,3046.7,3046.6,8.8009897]
[1763610060516,0.002,3047.2,3046.6,8.8009897]
[1763610060517,0.002,3047.2,3047.1,6.22273631]
[1763610060709,0.002,3047.2,3047.1,6.33373631]
[1763610061009,0.002,3047.6,3047.1,6.33373631]
[1763610061010,1e-08,3047.4,3047.3,0.505504]
[1763610061240,1e-08,3047.4,3047.3,0.52173068]
[1763610061644,1e-08,3047.4,3047.3,4.88772332]
[1763610061845,1e-08,3047.4,3047.3,5.01904976]
[1763610062016,1e-08,3047.4,3047.3,8.3006433]
[1763610062216,1e-08,3047.4,3047.3,8.28441662]
[1763610064474,0.002,3048.6,3048.2,0.1]
[1763610064634,0.002,3048.6,3048.2,0.211]
[1763610065235,0.002,3048.6,3048.2,0.616504]
[1763610066440,0.002,3048.6,3048.2,4.80412127]
[1763610066641,0.4863,3048.3,3048.2,4.39861727]
[1763610067471,0.002,3048.3,3048.2,4.39861727]
[1763610068437,0.9806,3048.3,3048.2,4.28761727]
[1763610069642,0.9806,3048.3,3048.2,3.38062463]
[1763610071171,0.501,3048.3,3048.2,3.38062463]
[1763610071339,0.9806,3048.3,3048.2,3.39682708]
[1763610071540,0.9806,3048.3,3048.2,3.38062463]
[1763610071850,0.002,3048.3,3048.2,4.18761727]
[1763610072035,0.002,3048.3,3048.2,4.30381972]
[1763610072641,0.002,3048.3,3048.2,4.28761727]
[1763610075178,0.501,3048.3,3048.2,4.28761727]
[1763610075978,0.002,3048.3,3048.2,4.28761727]
[1763610081451,0.002,3048.3,3048.2,4.76721727]
[1763610081656,0.002,3048.3,3048.2,5.17272127]
[1763610081858,0.002,3048.3,3048.2,5.18892372]
[1763610082059,0.002,3048.3,3048.2,8.63172127]
[1763610082788,0.002,3048.3,3048.2,13.16673876]
[1763610084576,0.501,3048.3,3048.2,4.76721727]
[1763610084775,0.9806,3048.3,3048.2,4.39861727]
[1763610085112,0.501,3048.3,3048.2,4.39861727]
[1763610085291,0.002,3048.3,3048.2,4.39861727]
[1763610086900,0.5013,3048.3,3048.2,4.39861727]
[1763610088210,0.9551,3048.3,3048.2,4.39861727]
[1763610088979,0.9551,3048.3,3048.2,3.49162463]
[1763610089409,0.9551,3048.3,3048.2,4.28761727]
[1763610092322,0.002,3048.3,3048.2,4.28761727]
[1763610092517,0.002,3048.3,3048.2,4.30381972]
[1763610092724,0.002,3048.3,3048.2,4.28761727]
[1763610093100,0.002,3048.3,3048.2,4.30381972]
[1763610093295,0.002,3048.3,3048.2,4.70932372]
[1763610094330,0.002,3048.3,3048.2,4.69312127]
[1763610098631,0.002,3048.3,3048.2,4.70932372]
[1763610098936,0.002,3048.3,3048.2,4.69312127]
[1763610100129,0.002,3048.3,3048.2,4.70932372]
[1763610100647,0.002,3048.3,3048.2,4.69312127]
[1763610102355,0.002,3048.3,3048.2,4.82441366]
[1763610102858,0.002,3048.3,3048.2,8.28141366]
[1763610105025,0.002,3048.3,3048.2,8.97113561]
[1763610105254,1e-08,3048.7,3048.6,1.41249664]
[1763610105469,1e-08,3048.7,3048.6,6.05851413]
[1763610105635,0.47310001,3048.7,3048.6,0.666504]
[1763610105825,0.47310001,3048.7,3048.6,4.74269082]
[1763610106030,0.92890001,3048.7,3048.6,4.39818682]
[1763610110366,0.92890001,3048.7,3048.6,4.28718682]
[1763610110530,0.47310001,3048.7,3048.6,4.28718682]
[1763610110733,1e-08,3048.7,3048.6,4.33718682]
[1763610111483,1e-08,3048.7,3048.6,8.21588252]
[1763610111632,1e-08,3048.7,3048.6,8.19969082]
[1763610112178,1e-08,3048.7,3048.6,8.57898951]
[1763610112647,1e-08,3048.7,3048.6,8.19969082]
[1763610116347,0.47310001,3048.7,3048.6,4.74269082]
[1763610116554,0.47310001,3048.7,3048.6,5.30949082]
[1763610116754,0.47310001,3048.7,3048.6,4.85369082]
[1763610116948,0.92890001,3048.7,3048.6,4.44818682]
[1763610117841,0.92890001,3048.7,3048.6,3.38019418]
[1763610118174,0.92890001,3048.7,3048.6,4.28718682]
[1763610123368,1e-08,3048.7,3048.6,4.30337852]
[1763610123682,0.92890001,3048.7,3048.6,4.39818682]
[1763610125299,1e-08,3048.7,3048.6,4.39818682]
[1763610125594,0.47310001,3048.7,3048.6,4.39818682]
[1763610125961,0.92890001,3048.7,3048.6,4.39818682]
[1763610127560,0.47310001,3048.7,3048.6,4.39818682]
[1763610127761,0.92890001,3048.7,3048.6,1.00699264]
[1763610127984,0.92890001,3048.7,3048.6,4.28718682]
[1763610128908,0.92890001,3048.7,3048.6,0.1]
[1763610129472,0.92890001,3048.7,3048.6,3.38019418]
[1763610129686,0.92890001,3048.7,3048.6,0.1]
[1763610129995,0.8555,3048.6,3048.5,0.098]
[1763610130169,0.8555,3048.6,3048.2,0.001]
[1763610130358,7.23163882,3048.7,3048.6,0.1]
[1763610130759,4.22098226,3048.7,3048.2,0.001]
[1763610130998,3.74038226,3048.7,3048.6,0.1]
[1763610131176,4.22098226,3048.7,3048.6,0.1]
[1763610131372,5.0153122,3048.7,3048.2,0.001]
[1763610131589,0.3289,3048.3,3048.2,0.101]
[1763610131966,0.8166,3048.3,3048.2,0.101]
[1763610135683,0.8166,3048.3,3048.2,3.38162463]
[1763610137019,0.8166,3048.3,3048.2,0.101]
[1763610142538,0.9276,3048.3,3048.2,0.101]
[1763610145351,0.9276,3048.3,3048.2,3.38162463]
[1763610145352,0.8166,3048.3,3048.2,3.38162463]
[1763610145849,0.3289,3048.3,3048.2,3.38162463]
[1763610146588,1e-08,3048.7,3048.6,0.1]
[1763610146861,0.48770001,3048.7,3048.6,0.1]
[1763610147021,0.96830001,3048.7,3048.6,0.1]
[1763610149373,1.42249897,3048.7,3048.6,0.1]
[1763610149580,4.70258556,3048.7,3048.6,0.1]
[1763610149751,1.42249897,3048.7,3048.6,0.1]
[1763610150158,4.70258556,3048.7,3048.6,0.1]
[1763610150882,1.42249897,3048.7,3048.6,0.1]
[1763610152855,4.70258556,3048.7,3048.6,0.1]
[1763610153778,1.42249897,3048.7,3048.6,0.1]
[1763610154181,4.70258556,3048.7,3048.6,0.1]
[1763610154385,1.42249897,3048.7,3048.6,0.1]
[1763610156388,1.7295474,3048.7,3048.6,0.1]
[1763610158009,5.00963399,3048.7,3048.6,0.1]
[1763610158818,5.00963399,3048.7,3047.9,0.001]
[1763610158819,0.600004,3047.9,3047.5,0.001]
[1763610159132,0.878604,3047.6,3047.5,0.101]
[1763610159293,1.65939702,3047.6,3047.5,0.101]
[1763610159488,3.68185515,3047.6,3047.5,0.101]
[1763610160098,2.86832962,3047.6,3047.5,0.101]
[1763610160719,1.0575,3047.6,3047.5,0.101]
[1763610161301,4.64553336,3047.6,3047.5,0.101]
[1763610161629,0.405504,3047.2,3046.1,0.001]
[1763610161824,0.6426,3046.6,3046.1,0.001]
[1763610162024,1.06036286,3046.6,3046.5,0.101]
[1763610162194,1.52706286,3046.6,3046.5,0.101]
[1763610162399,1.81101881,3046.6,3046.5,0.101]
[1763610163224,5.69359612,3046.6,3046.5,0.101]
[1763610165249,1.39325595,3046.6,3046.5,0.101]
[1763610165414,0.7536,3046.6,3046.5,0.101]
[1763610165739,0.5621,3046.6,3046.5,0.101]
[1763610165940,0.4511,3046.6,3046.5,0.101]
[1763610166145,0.111,3046.6,3046.5,3.38344175]
[1763610166346,0.111,3046.6,3046.5,0.5738]
[1763610166843,0.1915,3047.0,3046.9,0.1]
[1763610167044,0.7692,3047.0,3046.9,0.1]
[1763610167345,1.2203,3047.0,3046.9,0.1]
[1763610167712,4.95242855,3047.0,3046.9,0.1]
[1763610168731,1.67051192,3047.0,3046.9,0.1]
[1763610169246,4.95242855,3047.0,3046.9,0.1]
[1763610171647,1.67051192,3047.0,3046.9,0.1]
[1763610172027,4.95242855,3047.0,3046.9,0.1]
[1763610174031,4.9934525,3047.0,3046.9,0.1]
[1763610174235,4.9934525,3047.0,3046.9,0.001]
[1763610174452,4.9934525,3047.0,3046.9,0.101]
[1763610177061,4.8824525,3047.0,3046.9,0.101]
[1763610177232,4.9934525,3047.0,3046.9,0.101]
[1763610179163,12.4642784,3047.0,3046.5,0.001]
[1763610179375,0.405504,3046.0,3045.1,0.001]
[1763610179689,5.34919851,3045.9,3045.1,0.001]
[1763610179874,6.1208033,3045.9,3045.8,0.101]
[1763610180049,6.25228687,3045.9,3045.8,0.101]
[1763610183229,6.9545865,3045.9,3045.8,0.001]
[1763610183348,7.9783443,3045.9,3045.8,0.001]
[1763610185142,7.97831179,3045.9,3045.8,0.001]
[1763610187272,8.85618633,3045.9,3045.8,0.001]
[1763610187849,7.97831179,3045.9,3045.8,0.001]
[1763610188073,0.405504,3045.8,3045.3,0.1]
[1763610188418,2.19119957,3045.6,3045.3,0.1]
[1763610188706,0.875504,3045.4,3045.3,0.1]
[1763610188907,1.88267591,3045.4,3045.3,0.1]
[1763610189065,2.35077591,3045.4,3045.3,0.1]
[1763610189469,2.35077591,3045.4,3045.1,0.001]
[1763610189470,0.90699264,3045.3,3045.1,0.001]
[1763610189699,1.37283667,3045.2,3045.1,0.001]
[1763610189906,6.7340855,3045.2,3045.1,0.001]
[1763610191102,6.7340855,3045.2,3045.1,0.101]
[1763610192696,6.7340855,3045.2,3045.1,0.001]
[1763610193014,6.7340855,3045.2,3044.8,0.001]
[1763610193015,0.405504,3045.0,3044.8,0.001]
[1763610193310,1.85429664,3044.9,3044.8,0.001]
[1763610193612,3.32988179,3044.9,3044.8,0.001]
[1763610193912,3.37093404,3044.9,3044.8,0.001]
[1763610194075,7.88107256,3044.8,3044.5,0.001]
[1763610194273,0.405504,3044.5,3044.0,0.001]
[1763610194469,1.450704,3044.4,3044.3,0.101]
[1763610194673,2.45818915,3044.4,3044.3,0.101]
[1763610194873,2.58974105,3044.4,3044.3,0.101]
[1763610195610,2.22936349,3044.7,3044.6,0.1]
[1763610195795,0.81286453,3044.7,3044.6,0.5595]
[1763610196004,3.39539583,3044.7,3044.6,0.5595]
[1763610199109,2.05465789,3045.1,3044.6,0.4595]
[1763610199312,4.59655882,3045.1,3045.0,0.1]
[1763610199480,4.09717083,3045.1,3045.0,0.1]
[1763610199906,5.00416347,3045.1,3045.0,0.5595]
[1763610200604,5.00416347,3045.1,3045.0,0.1]
[1763610201524,5.47416347,3045.1,3045.0,0.1]
[1763610201990,6.81806567,3045.1,3045.0,0.1]
[1763610202185,7.12298103,3045.1,3045.0,0.1]
[1763610202690,7.52848503,3045.1,3045.0,0.1]
[1763610204621,7.06038503,3045.1,3045.0,0.1]
[1763610205037,7.52848503,3045.1,3045.0,0.1]
[1763610205195,8.40680569,3045.1,3045.0,0.1]
[1763610206006,7.06038503,3045.1,3045.0,0.1]
[1763610206223,7.93870569,3045.1,3045.0,0.1]
[1763610207234,7.46870569,3045.1,3045.0,0.1]
[1763610207436,6.59038503,3045.1,3045.0,0.1]
[1763610208142,7.07538503,3045.1,3045.0,0.1]
[1763610208348,8.24647925,3045.1,3045.0,0.1]
[1763610209237,7.07538503,3045.1,3045.0,0.1]
[1763610209606,7.07738503,3045.1,3045.0,0.1]
[1763610211529,7.57118503,3045.1,3045.0,0.1]
[1763610212137,9.32842459,3045.1,3045.0,0.1]
[1763610212432,7.07738503,3045.1,3045.0,0.1]
[1763610212645,6.18688103,3045.1,3045.0,0.1]
[1763610213267,7.36505021,3045.1,3045.0,0.1]
[1763610213433,7.25411739,3045.1,3045.0,0.5747]
[1763610213633,6.18688103,3045.1,3045.0,0.5747]
[1763610213866,7.36511739,3045.1,3045.0,0.5747]
[1763610214372,6.18688103,3045.1,3045.0,0.5747]
[1763610214780,6.18688103,3045.1,3045.0,0.1]
[1763610215076,6.67188103,3045.1,3045.0,0.1]
[1763610215379,6.18688103,3045.1,3045.0,0.1]
[1763610216434,6.18688103,3045.1,3045.0,0.5747]
[1763610216667,6.18894667,3045.1,3045.0,0.5747]
[1763610216891,9.68992318,3045.1,3045.0,0.5747]
[1763610218248,10.57417827,3045.1,3045.0,0.5747]
[1763610219470,15.71284005,3045.1,3045.0,0.1]
[1763610219671,1.31249664,3045.0,3044.9,0.1]
[1763610219856,5.10180381,3045.0,3044.9,0.1]
[1763610220174,5.58680381,3045.0,3044.9,0.1]
[1763610221278,6.76567674,3045.0,3044.9,0.1]
[1763610221478,10.00869808,3045.0,3044.9,0.1]
[1763610222865,10.00870769,3045.0,3044.9,0.1]
[1763610223265,8.82983476,3045.0,3044.9,0.1]
[1763610224470,3.50097651,3044.6,3044.5,0.101]
[1763610224668,4.62107577,3044.6,3044.5,0.101]
[1763610225357,5.50569666,3044.6,3044.5,0.101]
[1763610225873,9.45871949,3044.6,3044.5,0.101]
[1763610226387,9.45903749,3044.6,3044.5,0.5743]
[1763610226586,9.45903757,3044.6,3044.5,0.5743]